fUSD/lending_fUSD_20250511
["ID","MTS","AMOUNT","RATE_DAILY","PERIOD"]
[360729437,1746956954136,-400.0,0.00019889,2]
[360729438,1746956954165,-400.0,0.00019889,2]
[360729439,1746956954193,-400.0,0.00019889,2]
[360729440,1746956954221,-400.0,0.00019889,2]
[360729441,1746956954250,-400.0,0.00019889,2]
[360729442,1746956954279,-400.0,0.00019889,2]
[360729443,1746956954307,-400.0,0.00019889,2]
[360729444,1746956954334,-400.0,0.00019889,2]
[360729445,1746956954362,-400.0,0.00019889,2]
[360729446,1746956954393,-400.0,0.00019889,2]
[360729447,1746956954421,-400.0,0.00019889,2]
[360729448,1746956954449,-400.0,0.00019889,2]
[360729449,1746956954478,-400.0,0.00019889,2]
[360729450,1746956954504,-400.0,0.00019889,2]
[360729451,1746956954530,-400.0,0.00019889,2]
[360729452,1746956954557,-400.0,0.00019889,2]
[360729453,1746956954584,-400.0,0.00019889,2]
[360729454,1746956954610,-400.0,0.00019889,2]
[360729455,1746956954637,-400.0,0.00019889,2]
[360729456,1746956954664,-400.0,0.00019889,2]
[360729457,1746956954691,-2000.0,0.00019889,2]
[360729458,1746956954719,-400.0,0.00019889,2]
[360729459,1746956954746,-400.0,0.00019889,2]
[360729460,1746956954774,-400.0,0.00019889,2]
[360729461,1746956954802,-400.0,0.00019889,2]
[360729462,1746956954828,-400.0,0.00019889,2]
[360729463,1746956954854,-400.0,0.00019889,2]
[360729464,1746956954882,-400.0,0.00019889,2]
[360729465,1746956954909,-400.0,0.00019889,2]
[360729466,1746956954936,-400.0,0.00019889,2]
[360729467,1746956954964,-400.0,0.00019889,2]
[360729468,1746956954991,-316.99145845,0.00019889,2]
[360729469,1746956955018,-400.0,0.00019889,2]
[360729470,1746956955044,-400.0,0.00019889,2]
[360729471,1746956955071,-400.0,0.00019889,2]
[360729472,1746956955097,-500.0,0.00019889,2]
[360729473,1746956955124,-400.0,0.00019889,2]
[360729474,1746956955152,-205.71450268,0.00019889,2]
[360729475,1746956955178,-400.0,0.00019889,2]
[360729476,1746956955204,-540.52036529,0.00019889,2]
[360729477,1746956955231,-400.0,0.00019889,2]
[360729478,1746956955257,-400.0,0.00019889,2]
[360729479,1746956955285,-400.0,0.00019889,2]
[360729480,1746956955311,-400.0,0.00019889,2]
[360729481,1746956955337,-400.0,0.00019889,2]
[360729482,1746956955364,-400.0,0.00019889,2]
[360729483,1746956955394,-400.0,0.00019889,2]
[360729484,1746956955423,-400.0,0.00019889,2]
[360729485,1746956955450,-500.0,0.00019889,2]
[360729486,1746956955476,-400.0,0.00019889,2]
[360729487,1746956955503,-400.0,0.00019889,2]
[360729488,1746956955530,-400.0,0.00019889,2]
[360729489,1746956955558,-400.0,0.00019889,2]
[360729490,1746956955585,-400.0,0.00019889,2]
[360729491,1746956955613,-108.99508636,0.00019889,2]
[360729492,1746956956089,-190.0,0.00019889,2]
[360729493,1746956956100,-101.00491364,0.00019889,2]
[360729494,1746956956110,-400.0,0.00019889,2]
[360729495,1746956956120,-97.2455437,0.00019889,2]
[360729496,1746956956132,-302.7544563,0.00019889,2]
[360729497,1746956956142,-197.2455437,0.00019889,2]
[360729498,1746956956154,-202.7544563,0.00019889,2]
[360729499,1746956956164,-297.2455437,0.00019889,2]
[360729500,1746956956177,-102.7544563,0.00019889,2]
[360729501,1746956956186,-400.0,0.00019889,2]
[360729502,1746956956196,-109.89377469,0.00019889,2]
[360729503,1746956956208,-290.10622531,0.00019889,2]
[360729504,1746956956219,-209.89377469,0.00019889,2]
[360729505,1746956956232,-249.40622531,0.00019889,2]
[360729506,1746956956241,-250.59377469,0.00019889,2]
[360729507,1746956956262,-272.96741875,0.00019889,2]
[360729508,1746956956271,-227.64670104,0.00019889,2]
[360729509,1746956956305,-172.35329896,0.00019889,2]
[360729510,1746956956314,-327.64670104,0.00019889,2]
[360729511,1746956956326,-72.35329896,0.00019889,2]
[360729512,1746956956336,-280.19941824,0.00019889,2]
[360729513,1746956956345,-197.59443595,0.00019889,2]
[360729514,1746956956357,-202.40556405,0.00019889,2]
[360729515,1746956956367,-299.27665685,0.00019889,2]
[360729516,1746956956378,-100.72334315,0.00019889,2]
[360729517,1746956956387,-400.0,0.00019889,2]
[360729518,1746956956397,-400.0,0.00019889,2]
[360729519,1746956956407,-400.0,0.00019889,2]
[360729520,1746956956417,-400.0,0.00019889,2]
[360729521,1746956956426,-400.0,0.00019889,2]
[360729522,1746956956435,-471.59,0.00019889,2]
[360729523,1746956956444,-418.90300265,0.00019889,2]
[360729524,1746956956453,-400.0,0.00019889,2]
[360729525,1746956956463,-400.0,0.00019889,2]
[360729526,1746956956472,-64.85179035,0.00019889,2]
[360729527,1746956956483,-218.39480386,0.00019889,2]
[360729528,1746956956499,-116.75340579,0.00019889,2]
[360729529,1746956956508,-400.0,0.00019889,2]
[360729530,1746956956517,-400.0,0.00019889,2]
[360729531,1746956956526,-400.0,0.00019889,2]
[360729532,1746956956536,-400.0,0.00019889,2]
[360729533,1746956956546,-13.23362618,0.00019889,2]
[360729534,1746956956563,-157.23,0.00019725,2]
[360729535,1746956956575,-142.77,0.00019725,2]
[360729536,1746956956584,-386.76637382,0.00019889,2]
[360729537,1746956956594,-117.94429962,0.00019889,2]
[360729538,1746956956606,-282.05570038,0.00019889,2]
[360729539,1746956956615,-400.0,0.00019889,2]
[360729540,1746956956624,-400.0,0.00019889,2]
[360729541,1746956956634,-181.85129962,0.00019889,2]
[360729542,1746956956647,-218.14870038,0.00019889,2]
[360729543,1746956956656,-400.0,0.00019889,2]
[360729544,1746956956666,-400.0,0.00019889,2]
[360729545,1746956956675,-400.0,0.00019889,2]
[360729546,1746956956685,-400.0,0.00019889,2]
[360729547,1746956956698,-400.0,0.00019889,2]
[360729548,1746956956707,-400.0,0.00019889,2]
[360729549,1746956956716,-400.0,0.00019889,2]
[360729550,1746956956726,-400.0,0.00019889,2]
[360729551,1746956956735,-477.53,0.00019889,2]
[360729552,1746956956745,-400.0,0.00019889,2]
[360729553,1746956956755,-400.0,0.00019889,2]
[360729554,1746956956764,-400.0,0.00019889,2]
[360729555,1746956956774,-400.0,0.00019889,2]
[360729556,1746956956783,-400.0,0.00019889,2]
[360729557,1746956956792,-399.78066142,0.00019889,2]
[360729558,1746956956804,-0.21933858,0.00019889,2]
[360729559,1746956956814,-184.78614152,0.00019889,2]
[360729560,1746956956825,-215.21385848,0.00019889,2]
[360729561,1746956956834,-530.76367271,0.00019889,2]
[360729562,1746956956844,-400.0,0.00019889,2]
[360729563,1746956956853,-400.0,0.00019889,2]
[360729564,1746956956861,-400.0,0.00019889,2]
[360729565,1746956956870,-400.0,0.00019889,2]
[360729566,1746956956879,-245.45,0.00019889,2]
[360729567,1746956956888,-617.89,0.00019889,2]
[360729568,1746956956898,-400.0,0.00019889,2]
[360729569,1746956956907,-400.0,0.00019889,2]
[360729570,1746956956916,-166.5571251,0.00019889,2]
[360729571,1746956956925,-400.0,0.00019889,2]
[360729572,1746956956934,-74.55083181,0.00019889,2]
[360729573,1746956956958,-325.44916819,0.00019889,2]
[360729574,1746956956968,-400.0,0.00019889,2]
[360729575,1746956956978,-115.23227491,0.00019889,2]
[360729576,1746956956989,-284.76772509,0.00019889,2]
[360729577,1746956956998,-400.0,0.00019889,2]
[360729578,1746956957007,-400.0,0.00019889,2]
[360729579,1746956957016,-400.0,0.00019889,2]
[360729580,1746956957025,-400.0,0.00019889,2]
[360729581,1746956957035,-400.0,0.00019889,2]
[360729582,1746956957044,-400.0,0.00019889,2]
[360729583,1746956957053,-400.0,0.00019889,2]
[360729584,1746956957062,-308.74868291,0.00019889,2]
[360729585,1746956957074,-91.25131709,0.00019889,2]
[360729586,1746956957083,-400.0,0.00019889,2]
[360729587,1746956957094,-8.74868291,0.00019889,2]
[360729588,1746956957105,-391.25131709,0.00019889,2]
[360729589,1746956957115,-154.0841555,0.00019889,2]
[360729590,1746956957127,-245.9158445,0.00019889,2]
[360729591,1746956957137,-254.0841555,0.00019889,2]
[360729592,1746956957175,-331.0758445,0.00019889,2]
[360729593,1746956957185,-168.9241555,0.00019889,2]
[360729594,1746956957201,-231.0758445,0.00019889,2]
[360729595,1746956957211,-268.9241555,0.00019889,2]
[360729596,1746956957223,-131.0758445,0.00019889,2]
[360729597,1746956957233,-400.0,0.00019889,2]
[360729598,1746956957243,-400.0,0.00019889,2]
[360729599,1746956957253,-400.0,0.00019889,2]
[360729600,1746956957262,-400.0,0.00019889,2]
[360729601,1746956957272,-400.0,0.00019889,2]
[360729602,1746956957281,-400.0,0.00019889,2]
[360729603,1746956957290,-400.0,0.00019889,2]
[360729604,1746956957299,-400.0,0.00019889,2]
[360729605,1746956957309,-400.0,0.00019889,2]
[360729606,1746956957318,-400.0,0.00019889,2]
[360729607,1746956957328,-400.0,0.00019889,2]
[360729608,1746956957338,-454.86,0.00019889,2]
[360729609,1746956957348,-400.0,0.00019889,2]
[360729610,1746956957357,-400.0,0.00019889,2]
[360729611,1746956957366,-484.08,0.00019889,2]
[360729612,1746956957375,-400.0,0.00019889,2]
[360729613,1746956957385,-400.0,0.00019889,2]
[360729614,1746956957395,-400.0,0.00019889,2]
[360729615,1746956957404,-382.2,0.00019889,2]
[360729616,1746956957413,-400.0,0.00019889,2]
[360729617,1746956957422,-400.0,0.00019889,2]
[360729618,1746956957432,-476.0,0.00019889,2]
[360729619,1746956957441,-493.16,0.00019889,2]
[360729620,1746956957450,-400.0,0.00019889,2]
[360729621,1746956957460,-400.0,0.00019889,2]
[360729622,1746956957469,-400.0,0.00019889,2]
[360729623,1746956957478,-400.0,0.00019889,2]
[360729624,1746956957487,-962.39,0.00019889,2]
[360729625,1746956957496,-400.0,0.00019889,2]
[360729626,1746956957505,-400.0,0.00019889,2]
[360729627,1746956957515,-400.0,0.00019889,2]
[360729628,1746956957524,-400.0,0.00019889,2]
[360729629,1746956957532,-400.0,0.00019889,2]
[360729630,1746956957542,-400.0,0.00019889,2]
[360729631,1746956957551,-400.0,0.00019889,2]
[360729632,1746956957560,-400.0,0.00019889,2]
[360729633,1746956957569,-400.0,0.00019889,2]
[360729634,1746956957578,-400.0,0.00019889,2]
[360729635,1746956957588,-400.0,0.00019889,2]
[360729636,1746956957597,-400.0,0.00019889,2]
[360729637,1746956957607,-400.0,0.00019889,2]
[360729638,1746956957616,-400.0,0.00019889,2]
[360729639,1746956957627,-400.0,0.00019889,2]
[360729640,1746956957637,-400.0,0.00019889,2]
[360729641,1746956957648,-400.0,0.00019889,2]
[360729642,1746956957658,-400.0,0.00019889,2]
[360729643,1746956957667,-400.0,0.00019889,2]
[360729644,1746956957677,-400.0,0.00019889,2]
[360729645,1746956957687,-400.0,0.00019889,2]
[360729646,1746956957703,-300.0,0.00019889,2]
[360729647,1746956957712,-400.0,0.00019889,2]
[360729648,1746956957721,-400.0,0.00019889,2]
[360729649,1746956957731,-400.0,0.00019889,2]
[360729650,1746956957742,-400.0,0.00019889,2]
[360729651,1746956957752,-400.0,0.00019889,2]
[360729652,1746956957762,-505.9,0.00019889,2]
[360729653,1746956957772,-400.0,0.00019889,2]
[360729654,1746956957782,-435.89,0.00019889,2]
[360729655,1746956957791,-400.95446614,0.00019889,2]
[360729656,1746956957801,-400.0,0.00019889,2]
[360729657,1746956957810,-400.0,0.00019889,2]
[360729658,1746956957819,-400.0,0.00019889,2]
[360729659,1746956957828,-244.25,0.00019889,2]
[360729660,1746956957837,-400.0,0.00019889,2]
[360729661,1746956957846,-445.95,0.00019889,2]
[360729662,1746956957855,-400.0,0.00019889,2]
[360729663,1746956957864,-374.24,0.00019889,2]
[360729664,1746956957873,-400.0,0.00019889,2]
[360729665,1746956957882,-400.0,0.00019889,2]
[360729666,1746956957891,-206.86,0.00019889,2]
[360729667,1746956957900,-709.51,0.00019889,2]
[360729668,1746956957909,-400.0,0.00019889,2]
[360729669,1746956957919,-400.0,0.00019889,2]
[360729670,1746956957928,-418.72,0.00019889,2]
[360729671,1746956957938,-158.58,0.00019889,2]
[360729672,1746956957947,-332.38,0.00019889,2]
[360729673,1746956957956,-440.9053389,0.00019889,2]
[360729674,1746956957966,-400.0,0.00019889,2]
[360729675,1746956957975,-768.75,0.00019889,2]
[360729676,1746956957984,-400.0,0.00019889,2]
[360729677,1746956957994,-192.26,0.00019889,2]
[360729678,1746956958003,-400.0,0.00019889,2]
[360729679,1746956958013,-250.90621909,0.00019889,2]
[360729680,1746956958022,-400.0,0.00019889,2]
[360729681,1746956958032,-400.0,0.00019889,2]
[360729682,1746956958042,-520.0,0.00019889,2]
[360729683,1746956958052,-400.0,0.00019889,2]
[360729684,1746956958062,-406.24,0.00019889,2]
[360729685,1746956958071,-400.0,0.00019889,2]
[360729686,1746956958081,-400.0,0.00019889,2]
[360729687,1746956958090,-666.27,0.00019889,2]
[360729688,1746956958099,-400.0,0.00019889,2]
[360729689,1746956958109,-400.0,0.00019889,2]
[360729690,1746956958118,-400.0,0.00019889,2]
[360729691,1746956958129,-438.41,0.00019889,2]
[360729692,1746956958139,-400.0,0.00019889,2]
[360729693,1746956958149,-400.0,0.00019889,2]
[360729694,1746956958158,-400.0,0.00019889,2]
[360729695,1746956958168,-400.0,0.00019889,2]
[360729696,1746956958177,-400.0,0.00019889,2]
[360729697,1746956958187,-400.0,0.00019889,2]
[360729698,1746956958196,-400.0,0.00019889,2]
[360729699,1746956958206,-601.37,0.00019889,2]
[360729700,1746956958215,-601.37,0.00019889,2]
[360729701,1746956958225,-400.0,0.00019889,2]
[360729702,1746956958234,-414.05,0.00019889,2]
[360729703,1746956958244,-642.78,0.00019889,2]
[360729704,1746956958253,-400.0,0.00019889,2]
[360729705,1746956958263,-400.0,0.00019889,2]
[360729706,1746956958273,-826.67,0.00019889,2]
[360729707,1746956958283,-400.0,0.00019889,2]
[360729708,1746956958292,-400.0,0.00019889,2]
[360729709,1746956958301,-400.0,0.00019889,2]
[360729710,1746956958310,-400.0,0.00019889,2]
[360729711,1746956958320,-400.0,0.00019889,2]
[360729712,1746956958329,-400.0,0.00019889,2]
[360729713,1746956958339,-400.0,0.00019889,2]
[360729714,1746956958348,-400.0,0.00019889,2]
[360729715,1746956958358,-400.0,0.00019889,2]
[360729716,1746956958366,-2246.03,0.00019889,2]
[360729717,1746956958376,-529.52,0.00019889,2]
[360729718,1746956958386,-400.0,0.00019889,2]
[360729719,1746956958396,-400.0,0.00019889,2]
[360729720,1746956958405,-400.0,0.00019889,2]
[360729721,1746956958415,-1295.1,0.00019889,2]
[360729722,1746956958424,-400.0,0.00019889,2]
[360729723,1746956958434,-400.0,0.00019889,2]
[360729724,1746956958443,-400.0,0.00019889,2]
[360729725,1746956958453,-673.98,0.00019889,2]
[360729726,1746956958462,-400.0,0.00019889,2]
[360729727,1746956958472,-400.0,0.00019889,2]
[360729728,1746956958481,-400.0,0.00019889,2]
[360729729,1746956958491,-19026.5,0.00019889,2]
[360729730,1746956958500,-400.0,0.00019889,2]
[360729731,1746956958510,-400.0,0.00019889,2]
[360729732,1746956958520,-455.16,0.00019889,2]
[360729733,1746956958529,-400.0,0.00019889,2]
[360729734,1746956958539,-423.77,0.00019889,2]
[360729735,1746956958548,-500.0,0.00019889,2]
[360729736,1746956958559,-400.0,0.00019889,2]
[360729737,1746956958568,-400.0,0.00019889,2]
[360729738,1746956958578,-510.95,0.00019889,2]
[360729739,1746956958588,-400.0,0.00019889,2]
[360729740,1746956958597,-400.0,0.00019889,2]
[360729741,1746956958607,-436.92,0.00019889,2]
[360729742,1746956958616,-436.92,0.00019889,2]
[360729743,1746956958626,-400.0,0.00019889,2]
[360729744,1746956958635,-204.2,0.00019889,2]
[360729745,1746956958645,-400.0,0.00019889,2]
[360729746,1746956958655,-784.41,0.00019889,2]
[360729747,1746956958664,-784.41,0.00019889,2]
[360729748,1746956958674,-400.0,0.00019889,2]
[360729749,1746956958683,-400.0,0.00019889,2]
[360729750,1746956958695,-400.0,0.00019889,2]
[360729751,1746956958705,-400.0,0.00019889,2]
[360729752,1746956958715,-400.0,0.00019889,2]
[360729753,1746956958724,-400.0,0.00019889,2]
[360729754,1746956958734,-400.0,0.00019889,2]
[360729755,1746956958743,-400.0,0.00019889,2]
[360729756,1746956958754,-400.0,0.00019889,2]
[360729757,1746956958763,-400.0,0.00019889,2]
[360729758,1746956958774,-400.0,0.00019889,2]
[360729759,1746956958785,-400.0,0.00019889,2]
[360729760,1746956958794,-400.0,0.00019889,2]
[360729761,1746956958803,-400.0,0.00019889,2]
[360729762,1746956958813,-215.79869447,0.00019889,2]
[360729763,1746956958828,-184.20130553,0.00019889,2]
[360729764,1746956958837,-400.0,0.00019889,2]
[360729765,1746956958847,-369.57584128,0.00019889,2]
[360729766,1746956958857,-400.0,0.00019889,2]
[360729767,1746956958867,-400.0,0.00019889,2]
[360729768,1746956958876,-400.0,0.00019889,2]
[360729769,1746956959055,-518.21,0.00019889,2]
[360729770,1746956959070,-400.0,0.00019889,2]
[360729771,1746956959079,-400.0,0.00019889,2]
[360729772,1746956959088,-400.0,0.00019889,2]
[360729773,1746956959098,-400.0,0.00019889,2]
[360729774,1746956959108,-400.0,0.00019889,2]
[360729775,1746956959117,-400.0,0.00019889,2]
[360729776,1746956959127,-324.99,0.00019889,2]
[360729777,1746956959136,-471.87,0.00019889,2]
[360729778,1746956959147,-471.87,0.00019889,2]
[360729779,1746956959157,-400.0,0.00019889,2]
[360729780,1746956959166,-400.0,0.00019889,2]
[360729781,1746956959175,-400.0,0.00019889,2]
[360729782,1746956959185,-400.0,0.00019889,2]
[360729783,1746956959194,-10.37499343,0.00019889,2]
[360729784,1746956959238,-389.62500657,0.00019889,2]
[360729785,1746956959268,-1150.89,0.00019889,2]
[360729786,1746956959298,-1150.89,0.00019889,2]
[360729787,1746956959326,-435.74,0.00019889,2]
[360729788,1746956959355,-435.74,0.00019889,2]
[360729789,1746956959383,-400.0,0.00019889,2]
[360729790,1746956959414,-400.0,0.00019889,2]
[360729791,1746956959443,-558.61,0.00019889,2]
[360729792,1746956959471,-400.0,0.00019889,2]
[360729793,1746956959499,-400.0,0.00019889,2]
[360729794,1746956959525,-400.0,0.00019889,2]
[360729795,1746956959553,-400.0,0.00019889,2]
[360729796,1746956959580,-1161.52,0.00019889,2]
[360729797,1746956959607,-1161.52,0.00019889,2]
[360729798,1746956959635,-400.0,0.00019889,2]
[360729799,1746956959663,-559.46,0.00019889,2]
[360729800,1746956959694,-400.0,0.00019889,2]
[360729801,1746956959721,-500.0,0.00019889,2]
[360729802,1746956959749,-400.0,0.00019889,2]
[360729803,1746956959778,-400.0,0.00019889,2]
[360729804,1746956959806,-400.0,0.00019889,2]
[360729805,1746956959833,-400.0,0.00019889,2]
[360729806,1746956959859,-500.0,0.00019889,2]
[360729807,1746956959889,-400.0,0.00019889,2]
[360729808,1746956959916,-218.99,0.00019889,2]
[360729809,1746956959942,-501.92244184,0.00019889,2]
[360729810,1746956959971,-467.32153991,0.00019889,2]
[360729811,1746956959999,-400.0,0.00019889,2]
[360729812,1746956960028,-2462.89,0.00019889,2]
[360729813,1746956960055,-400.0,0.00019889,2]
[360729814,1746956960086,-800.72,0.00019889,2]
[360729815,1746956960113,-400.0,0.00019889,2]
[360729816,1746956960139,-264.73,0.00019889,2]
[360729817,1746956960167,-868.6,0.00019889,2]
[360729818,1746956960196,-868.6,0.00019889,2]
[360729819,1746956960225,-400.0,0.00019889,2]
[360729820,1746956960252,-156.89865954,0.00019889,2]
[360729821,1746956960280,-2180.31,0.00019889,2]
[360729822,1746956960308,-400.0,0.00019889,2]
[360729823,1746956960335,-400.0,0.00019889,2]
[360729824,1746956960363,-400.0,0.00019889,2]
[360729825,1746956960390,-400.0,0.00019889,2]
[360729826,1746956960417,-188.14,0.00019889,2]
[360729827,1746956960445,-591.07,0.00019889,2]
[360729828,1746956960472,-400.0,0.00019889,2]
[360729829,1746956960500,-400.0,0.00019889,2]
[360729830,1746956960529,-480.81,0.00019889,2]
[360729831,1746956960555,-1987.73,0.00019889,2]
[360729832,1746956960582,-637.48,0.00019889,2]
[360729833,1746956960609,-400.0,0.00019889,2]
[360729834,1746956960639,-263.24982797,0.00019889,2]
[360729835,1746956960668,-400.0,0.00019889,2]
[360729836,1746956960698,-400.0,0.00019889,2]
[360729837,1746956960726,-374.08055048,0.00019889,2]
[360729838,1746956960754,-1000.0,0.00019889,2]
[360729839,1746956960784,-400.0,0.00019889,2]
[360729840,1746956960813,-400.0,0.00019889,2]
[360729841,1746956960842,-400.0,0.00019889,2]
[360729842,1746956960871,-400.0,0.00019889,2]
[360729843,1746956960899,-665.35,0.00019889,2]
[360729844,1746956960925,-400.0,0.00019889,2]
[360729845,1746956960952,-429.47,0.00019889,2]
[360729846,1746956960981,-7893.23,0.00019889,2]
[360729847,1746956961008,-400.0,0.00019889,2]
[360729848,1746956961035,-400.0,0.00019889,2]
[360729849,1746956961063,-248.49235243,0.00019889,2]
[360729850,1746956961091,-400.0,0.00019889,2]
[360729851,1746956961118,-402.9,0.00019889,2]
[360729852,1746956961146,-400.0,0.00019889,2]
[360729853,1746956961174,-559.37,0.00019889,2]
[360729854,1746956961202,-400.0,0.00019889,2]
[360729855,1746956961230,-400.0,0.00019889,2]
[360729856,1746956961257,-400.0,0.00019889,2]
[360729857,1746956961285,-400.0,0.00019889,2]
[360729858,1746956961312,-400.0,0.00019889,2]
[360729859,1746956961340,-400.0,0.00019889,2]
[360729860,1746956961368,-400.0,0.00019889,2]
[360729861,1746956961396,-331.89183331,0.00019889,2]
[360729862,1746956961426,-400.0,0.00019889,2]
[360729863,1746956961453,-400.0,0.00019889,2]
[360729864,1746956961481,-400.0,0.00019889,2]
[360729865,1746956961509,-400.0,0.00019889,2]
[360729866,1746956961536,-215.85,0.00019889,2]
[360729867,1746956961562,-300.0,0.00019889,2]
[360729868,1746956961783,-400.0,0.00019887,2]
[360729869,1746956961802,-114.83679881,0.0001989,2]
[360729870,1746956961813,-400.0,0.0001989,2]
[360729871,1746956961828,-400.0,0.0001989,2]
[360729872,1746956961839,-400.0,0.0001989,2]
[360729873,1746956961850,-400.0,0.0001989,2]
[360729874,1746956961861,-400.0,0.0001989,2]
[360729875,1746956961872,-400.0,0.0001989,2]
[360729876,1746956961883,-400.0,0.0001989,2]
[360729877,1746956961895,-400.0,0.0001989,2]
[360729878,1746956961907,-400.0,0.0001989,2]
[360729879,1746956961929,-400.0,0.0001989,2]
[360729880,1746956961947,-438.89,0.0001989,2]
[360729881,1746956961983,-400.0,0.0001989,2]
[360729882,1746956961994,-400.0,0.0001989,2]
[360729883,1746956962005,-400.0,0.0001989,2]
[360729884,1746956962016,-400.0,0.0001989,2]
[360729885,1746956962027,-459.74,0.0001989,2]
[360729886,1746956962037,-400.0,0.0001989,2]
[360729887,1746956962048,-400.0,0.0001989,2]
[360729888,1746956962058,-400.0,0.0001989,2]
[360729889,1746956962069,-400.0,0.0001989,2]
[360729890,1746956962080,-484.08,0.0001989,2]
[360729891,1746956962091,-400.0,0.0001989,2]
[360729892,1746956962106,-400.0,0.0001989,2]
[360729893,1746956962358,-400.0,0.0001989,2]
[360729894,1746956962369,-400.0,0.0001989,2]
[360729895,1746956962381,-400.0,0.0001989,2]
[360729896,1746956962397,-400.0,0.0001989,2]
[360729897,1746956962409,-400.0,0.0001989,2]
[360729898,1746956962421,-400.0,0.0001989,2]
[360729899,1746956962432,-400.0,0.0001989,2]
[360729900,1746956962448,-400.0,0.0001989,2]
[360729901,1746956962459,-400.0,0.0001989,2]
[360729902,1746956962470,-400.0,0.0001989,2]
[360729903,1746956962481,-400.0,0.0001989,2]
[360729904,1746956962491,-400.0,0.0001989,2]
[360729905,1746956962502,-400.0,0.0001989,2]
[360729906,1746956962514,-400.0,0.0001989,2]
[360729907,1746956962529,-400.0,0.0001989,2]
[360729908,1746956962540,-400.0,0.0001989,2]
[360729909,1746956962551,-400.0,0.0001989,2]
[360729910,1746956962562,-400.0,0.0001989,2]
[360729911,1746956962573,-400.0,0.0001989,2]
[360729912,1746956962584,-400.0,0.0001989,2]
[360729913,1746956962595,-400.0,0.0001989,2]
[360729914,1746956962606,-400.0,0.0001989,2]
[360729915,1746956962617,-413.4,0.0001989,2]
[360729916,1746956962628,-400.0,0.0001989,2]
[360729917,1746956962638,-400.0,0.0001989,2]
[360729918,1746956962650,-415.59,0.0001989,2]
[360729919,1746956962661,-400.0,0.0001989,2]
[360729920,1746956962671,-400.0,0.0001989,2]
[360729921,1746956962683,-400.0,0.0001989,2]
[360729922,1746956962697,-400.0,0.0001989,2]
[360729923,1746956962710,-400.0,0.0001989,2]
[360729924,1746956962721,-400.0,0.0001989,2]
[360729925,1746956962732,-400.0,0.0001989,2]
[360729926,1746956962743,-454.54,0.0001989,2]
[360729927,1746956962754,-452.44844443,0.0001989,2]
[360729928,1746956962765,-400.0,0.0001989,2]
[360729929,1746956962778,-400.0,0.0001989,2]
[360729930,1746956962810,-400.0,0.0001989,2]
[360729931,1746956962847,-400.0,0.0001989,2]
[360729932,1746956962859,-400.0,0.0001989,2]
[360729933,1746956962872,-400.0,0.0001989,2]
[360729934,1746956962888,-400.0,0.0001989,2]
[360729935,1746956962900,-438.41,0.0001989,2]
[360729936,1746956962912,-400.0,0.0001989,2]